bitfinex-derivatives/quotes_ETHF0:USTF0_20250501
["timestamp","ask_amount","ask_price","bid_price","bid_amount"]
[1746085426848,4.5842,1813.5,1813.4,5.95423]
[1746085427049,6.2137,1813.5,1813.4,5.95423]
[1746085429051,7.31637,1813.5,1813.4,5.95423]
[1746085429351,8.13517,1813.5,1813.4,4.31053]
[1746085429648,8.13517,1813.5,1813.4,1.10273]
[1746085429953,1.10273,1813.4,1813.3,4.56874]
[1746085430154,6.48823,1813.4,1813.3,4.56874]
[1746085431052,1.10283,1813.3,1813.2,1.1028]
[1746085431239,3.55313,1813.3,1813.2,1.1028]
[1746085432251,7.34113,1813.3,1813.2,1.1028]
[1746085435251,1.10285,1813.2,1813.1,3.466]
[1746085435451,3.59595,1813.2,1813.1,4.56891]
[1746085436158,7.38395,1813.2,1813.1,4.56891]
[1746085438764,7.38395,1813.2,1813.1,3.466]
[1746085439062,13.25995,1813.2,1813.1,3.466]
[1746085440263,13.25995,1813.2,1813.1,4.56891]
[1746085440464,10.76685,1813.2,1813.1,4.56891]
[1746085440866,10.76685,1813.2,1813.1,6.15431]
[1746085443981,4.89085,1813.2,1813.1,6.15431]
[1746085454984,6.60155,1813.2,1813.1,6.15431]
[1746085462092,4.89085,1813.2,1813.1,6.15431]
[1746085464593,6.47225,1813.2,1813.1,6.15431]
[1746085466892,6.47225,1813.2,1813.1,3.466]
[1746085467193,7.32455,1813.2,1813.1,3.466]
[1746085467991,7.32455,1813.2,1813.1,4.56891]
[1746085470395,13.20055,1813.2,1813.1,4.56891]
[1746085472497,13.20055,1813.2,1813.1,3.466]
[1746085473093,1.10291,1813.1,1813.0,1.10293]
[1746085473295,3.61581,1813.1,1813.0,1.10293]
[1746085474095,7.40381,1813.1,1813.0,1.10293]
[1746085474692,1.10303,1813.0,1812.9,1.10298]
[1746085474897,2.75243,1813.0,1812.9,1.10298]
[1746085475300,6.54043,1813.0,1812.9,1.10298]
[1746085476199,1.10303,1812.9,1812.8,9.41365]
[1746085476390,3.55053,1812.9,1812.8,9.41365]
[1746085476589,9.42653,1812.9,1812.8,6.6698]
[1746085476888,10.29163,1812.9,1812.8,6.6698]
[1746085477095,14.07963,1812.9,1812.8,6.6698]
[1746085477599,14.07963,1812.9,1812.8,7.7729]
[1746085477792,9.664,1812.9,1812.8,9.4273]
[1746085477995,9.664,1812.9,1812.8,10.2352]
[1746085478193,10.76703,1812.9,1812.8,10.2352]
[1746085478393,9.664,1812.9,1812.8,10.2352]
[1746085482300,3.788,1812.9,1812.8,10.2352]
[1746085483199,3.788,1812.9,1812.8,9.4273]
[1746085483397,5.3648,1812.9,1812.8,9.4273]
[1746085490406,3.788,1812.9,1812.8,9.4273]
[1746085492002,3.788,1812.9,1812.8,10.27]
[1746085493803,3.788,1812.9,1812.8,9.4273]
[1746085494006,5.3658,1812.9,1812.8,9.4273]
[1746085495206,2.75777,1812.8,1812.5,7.36126647]
[1746085495401,1.10322,1812.6,1812.5,7.36126647]
[1746085495808,2.75862,1812.6,1812.5,7.36126647]
[1746085497106,7.38202,1812.6,1812.5,8.46454647]
[1746085499403,10.58982,1812.6,1812.5,8.46454647]
[1746085499801,16.46582,1812.6,1812.5,8.46454647]
[1746085500402,12.1548,1812.6,1812.5,8.46454647]
[1746085500603,10.76722,1812.6,1812.5,10.90454647]
[1746085501712,10.76722,1812.6,1812.5,14.36754647]
[1746085501911,10.76722,1812.6,1812.5,7.00628]
[1746085504012,9.664,1812.6,1812.5,7.00628]
[1746085504208,9.664,1812.6,1812.5,15.21408]
[1746085505316,5.876,1812.6,1812.5,15.21408]
[1746085505506,7.3589711,1813.1,1812.5,15.21408]
[1746085505507,8.4618911,1813.1,1813.0,1.10297]
[1746085506007,7.3589711,1813.1,1813.0,1.10297]
[1746085506210,11.1469711,1813.1,1813.0,1.10297]
[1746085506410,12.2498811,1813.1,1813.0,2.81657]
[1746085506608,11.1469711,1813.1,1813.0,2.81657]
[1746085506811,12.2498811,1813.1,1813.0,2.81657]
[1746085507405,11.1469711,1813.1,1813.0,6.02437]
[1746085508013,3.788,1813.1,1813.0,6.02437]
[1746085510216,2.60186,1813.1,1813.0,6.02437]
[1746085510614,2.60186,1813.1,1813.0,11.02437]
[1746085511212,2.5085,1813.5,1813.4,1.10273]
[1746085511816,2.5085,1813.5,1813.4,2.81763]
[1746085512320,6.2965,1813.5,1813.4,2.81763]
[1746085514218,4.5817,1813.5,1813.4,2.81763]
[1746085515120,3.788,1813.5,1813.4,2.81763]
[1746085516918,3.788,1813.5,1813.4,6.02543]
[1746085519517,3.788,1813.5,1813.4,46.82543]
[1746085520319,3.62653,1813.9,1813.8,1.10249]
[1746085521118,7.41453,1813.9,1813.8,1.10249]
[1746085521424,6.3121,1813.9,1813.8,1.10249]
[1746085523123,6.3121,1813.9,1813.8,2.72709]
[1746085525924,4.5774,1813.9,1813.8,2.72709]
[1746085526122,4.5774,1813.9,1813.8,5.93489]
[1746085526322,3.788,1813.9,1813.8,5.93489]
[1746085526523,3.788,1813.9,1813.8,6.78499]
[1746085531923,3.788,1813.9,1813.8,5.93489]
[1746085535035,3.788,1813.9,1813.8,46.73489]
[1746085536328,3.788,1813.9,1813.8,43.52709]
[1746085536628,3.788,1813.9,1813.8,46.73489]
[1746085547226,4.6571,1813.9,1813.8,46.73489]
[1746085548734,3.788,1813.9,1813.8,46.73489]
[1746085551936,5.3592,1813.9,1813.8,46.73489]
[1746085563545,5.3592,1813.9,1813.8,50.21089]
[1746085567341,3.788,1813.9,1813.8,50.21089]
[1746085568238,0.8979,1813.9,1813.8,51.01929]
[1746085568435,1e-05,1813.9,1813.8,51.01929]
[1746085569245,0.8276,1814.2,1814.1,1.1023]
[1746085569446,0.8276,1814.2,1814.1,4.5693]
[1746085569838,0.8276,1814.2,1814.1,46.943]
[1746085570336,4.6156,1814.2,1814.1,46.943]
[1746085570738,4.6156,1814.2,1814.1,4.5693]
[1746085571137,6.212,1814.2,1814.1,4.5693]
[1746085579552,7.31424,1814.2,1814.1,4.5693]
[1746085579847,6.212,1814.2,1814.1,4.5693]
[1746085580651,7.31424,1814.2,1814.1,4.5693]
[1746085581548,7.31424,1814.2,1814.1,1.1023]
[1746085586858,1.10237,1814.0,1813.9,3.467]
[1746085587352,3.50187,1814.0,1813.9,3.467]
[1746085587559,3.50187,1814.0,1813.9,4.56943]
[1746085588159,7.28987,1814.0,1813.9,4.56943]
[1746085588857,7.28987,1814.0,1813.9,6.14103]
[1746085600278,6.1875,1814.0,1813.9,6.14103]
[1746085601876,7.28987,1814.0,1813.9,6.14103]
[1746085606274,7.28987,1814.0,1813.9,4.56943]
[1746085606475,1.10243,1813.9,1813.8,1.10245]
[1746085606676,2.74793,1813.9,1813.8,1.10245]
[1746085607176,6.53593,1813.9,1813.8,1.10245]
[1746085609679,5.4335,1813.9,1813.8,1.10245]
[1746085609977,6.53593,1813.9,1813.8,1.10245]
[1746085618785,8.18958,1813.9,1813.6,6.6708]
[1746085618988,1.10255,1813.7,1813.6,7.77339]
[1746085619380,2.80925,1813.7,1813.6,7.77339]
[1746085620088,6.59725,1813.7,1813.6,7.77339]
[1746085623791,6.59725,1813.7,1813.6,4.56559]
[1746085624989,6.59725,1813.7,1813.6,3.463]
[1746085626091,6.59725,1813.7,1813.6,1.10261]
[1746085626583,1.10261,1813.6,1813.5,2.68732]
[1746085626783,3.63751,1813.6,1813.5,2.68732]
[1746085627192,7.42551,1813.6,1813.5,2.68732]
[1746085628489,1.10291,1813.1,1813.0,7.63699162]
[1746085628792,1.10297,1813.0,1812.9,11.0418997]
[1746085629092,3.58457,1813.0,1812.9,11.0418997]
[1746085630089,7.37257,1813.0,1812.9,11.0418997]
[1746085631492,7.37257,1813.0,1812.7,1.6957]
[1746085631493,1.1031,1812.8,1812.7,1.6957]
[1746085631693,4.3109,1812.8,1812.7,1.6957]
[1746085632091,5.996,1812.8,1812.7,1.6957]
[1746085632393,9.784,1812.8,1812.7,1.6957]
[1746085633190,3.788,1812.8,1812.7,2.79886]
[1746085637385,4.8911,1812.8,1812.7,2.79886]
[1746085637593,3.788,1812.8,1812.7,2.79886]
[1746085638793,0.95592515,1812.8,1812.7,11.00666]
[1746085639190,6.97892,1813.1,1813.0,1.10297]
[1746085639491,6.97892,1813.1,1813.0,4.56197]
[1746085640100,10.76692,1813.1,1813.0,7.85817]
[1746085640294,3.788,1813.1,1813.0,12.85817]
[1746085640996,3.788,1813.1,1813.0,7.85817]
[1746085644496,3.788,1813.1,1813.0,48.65817]
[1746085647102,8.09871,1813.1,1813.0,7.01327]
[1746085648098,9.72981,1813.1,1813.0,7.01327]
[1746085648300,9.72981,1813.1,1813.0,5.41507]
[1746085649303,9.72981,1813.1,1813.0,3.459]
[1746085649605,1.10303,1812.9,1812.8,3.459]
[1746085649904,4.31083,1812.9,1812.8,1.1031]
[1746085650099,9.67163,1812.9,1812.8,1.1031]
[1746085651705,8.5686,1812.9,1812.8,1.1031]
[1746085651910,6.9958,1812.9,1812.8,1.1031]
[1746085652199,3.788,1812.9,1812.8,4.5621]
[1746085654305,4.89103,1812.9,1812.8,4.5621]
[1746085654503,5.71993,1812.9,1812.8,4.5621]
[1746085654702,5.71993,1812.9,1812.8,3.459]
[1746085654703,8.92773,1812.9,1812.8,3.459]
[1746085655208,8.92773,1812.9,1812.8,4.5621]
[1746085658813,8.92773,1812.9,1812.8,1.1031]
[1746085659004,8.92773,1812.9,1812.6,3.56844]
[1746085659005,1.10316,1812.8,1812.7,1.1031]
[1746085659311,3.59096,1812.8,1812.7,1.1031]
[1746085660309,7.37896,1812.8,1812.7,1.1031]
[1746085660509,6.2758,1812.8,1812.5,50.283]
[1746085660811,5.97812,1812.7,1812.6,1.10316]
[1746085661300,9.76612,1812.7,1812.6,1.10316]
[1746085663509,1.10322,1812.6,1812.5,4.62023]
[1746085663717,3.56432,1812.6,1812.5,4.62023]
[1746085664309,7.35232,1812.6,1812.5,4.62023]
[1746085666515,7.35232,1812.6,1812.5,6.26743]
[1746085668520,6.2491,1812.6,1812.5,6.26743]
[1746085670618,3.788,1812.6,1812.5,6.26743]
[1746085680018,5.4165,1812.6,1812.5,6.26743]
[1746085682124,3.788,1812.6,1812.5,6.26743]
[1746085686128,3.788,1812.6,1812.5,9.47523]
[1746085686331,3.788,1812.6,1812.5,6.26743]
[1746085707543,5.53,1812.6,1812.5,6.26743]
[1746085709251,5.53,1812.6,1812.5,4.62023]
[1746085709456,6.4012,1812.6,1812.5,4.62023]
[1746085712659,6.4012,1812.6,1812.5,6.29293]
[1746085716462,6.4012,1812.6,1812.5,4.62023]
[1746085717859,6.4012,1812.6,1812.5,1.10323]
[1746085720062,9.609,1812.6,1812.5,1.10323]
[1746085721366,0.38161,1812.6,1812.5,9.31103]
[1746085721561,1e-05,1812.6,1812.5,12.55953]
[1746085722364,7.3589711,1812.8,1812.7,1.10316]
[1746085722564,7.3589711,1812.8,1812.7,7.79696]
[1746085723164,6.1676511,1812.8,1812.7,7.79696]
[1746085723363,4.9786811,1812.8,1812.7,7.79696]
[1746085723558,2.444,1813.0,1812.9,1.10303]
[1746085724265,6.232,1813.0,1812.9,2.67613]
[1746085732259,5.421,1813.0,1812.9,2.67613]
[1746085732565,0.97788,1813.0,1812.9,2.67613]
[1746085732764,3.2078,1813.4,1813.0,2.7573]
[1746085732963,3.2682,1813.6,1813.5,1.10267]
[1746085733263,1.6607,1813.6,1813.5,1.10267]
[1746085734257,5.4487,1813.6,1813.5,1.10267]
[1746085734955,4.6538,1813.6,1813.5,1.10267]
[1746085735152,4.6538,1813.6,1813.5,2.83877]
[1746085735564,4.6538,1813.6,1813.5,6.04657]
[1746085736463,4.6538,1813.6,1813.5,2.83877]
[1746085737859,3.788,1813.6,1813.5,2.83877]
[1746085738068,3.788,1813.6,1813.5,6.04657]
[1746085739465,3.788,1813.6,1813.5,2.83877]
[1746085741369,3.788,1813.6,1813.5,1.10267]
[1746085742772,8.788,1813.6,1813.5,1.10267]
[1746085742972,9.89061,1813.6,1813.5,1.10267]
[1746085743170,9.89061,1813.6,1813.3,1.10274]
[1746085743171,1.10272,1813.5,1813.3,1.10274]
[1746085743377,0.7918,1813.4,1813.3,1.10274]
[1746085743675,1.6218,1813.4,1813.3,1.10274]
[1746085744267,5.4098,1813.4,1813.3,1.10274]
[1746085746578,7.0733,1813.4,1813.3,1.10274]
[1746085750279,8.17603,1813.4,1813.3,1.10274]
[1746085750676,15.2811,1813.4,1812.8,2.7577]
[1746085750871,3.2078,1813.0,1812.7,1.10313]
[1746085751077,3.2078,1812.8,1812.7,1.10316]
[1746085751372,3.411,1812.9,1812.8,1.1031]
[1746085752279,7.199,1812.9,1812.8,1.1031]
[1746085752879,3.788,1812.9,1812.8,4.3109]
[1746085753079,3.788,1812.9,1812.8,5.1838]
[1746085753280,2.5778,1813.2,1813.1,1.10291]
[1746085753783,1.7188,1813.2,1813.1,1.10291]
[1746085753973,1.7188,1813.2,1813.1,3.56331]
[1746085754177,7.5803,1813.4,1813.3,1.10279]
[1746085754771,5.876,1813.7,1813.4,1.10273]
[1746085755079,2.4865,1813.7,1813.6,1.10261]
[1746085756080,6.2745,1813.7,1813.6,1.10261]
[1746085756686,7.37705,1813.7,1813.6,1.10261]
[1746085756885,7.37708,1813.7,1813.5,4.37513]
[1746085757183,1.6275,1813.6,1813.5,4.37517]
[1746085758187,5.4155,1813.6,1813.5,4.37517]
[1746085759089,5.4155,1813.6,1813.5,1.10267]
[1746085759984,5.4155,1813.6,1813.4,1.10272]
[1746085760187,2.71847,1813.5,1813.4,1.10272]
[1746085760484,1.6158,1813.5,1813.4,1.10272]
[1746085760686,8.59447,1813.5,1813.4,1.10272]
[1746085761283,12.38247,1813.5,1813.4,1.10272]
[1746085761488,1.10273,1813.4,1813.3,3.498]
[1746085761688,4.33683,1813.4,1813.3,4.60079]
[1746085762187,8.12483,1813.4,1813.3,4.60079]
[1746085762391,7.0221,1813.4,1813.3,4.60079]
[1746085762579,8.12483,1813.4,1813.3,4.60079]
[1746085764990,7.0221,1813.4,1813.3,4.60079]
[1746085765483,7.0221,1813.4,1813.3,6.22509]
[1746085766590,8.12483,1813.4,1813.3,6.22509]
[1746085768083,7.32623,1813.4,1813.3,6.22509]
[1746085768289,6.50653,1813.4,1813.3,6.22509]
[1746085768588,5.4038,1813.4,1813.3,6.22509]
[1746085768781,6.50653,1813.4,1813.3,6.22509]
[1746085770488,6.50653,1813.4,1813.3,5.1223]
[1746085770689,6.50653,1813.4,1813.3,3.498]
[1746085771192,7.36923,1813.4,1813.3,4.60079]
[1746085772091,7.36923,1813.4,1813.3,3.498]
[1746085772287,7.36923,1813.4,1813.3,4.60079]
[1746085772588,7.36923,1813.4,1813.3,6.26149]
[1746085777397,7.36923,1813.4,1813.3,4.60079]
[1746085777590,7.36923,1813.4,1813.3,3.498]
[1746085778396,1.10279,1813.3,1813.2,1.10282]
[1746085778595,2.72779,1813.3,1813.2,1.10282]
[1746085778903,3.788,1813.4,1813.3,1.10279]
[1746085779286,10.18648,1813.5,1813.2,2.46]
[1746085779486,3.55617,1813.4,1813.3,1.10275]
[1746085779691,1.10279,1813.3,1813.2,1.9269]
[1746085779992,2.72779,1813.3,1813.2,1.9269]
[1746085780198,6.51579,1813.3,1813.2,1.9269]
[1746085780598,4.89079,1813.3,1813.2,1.9269]
[1746085780894,3.788,1813.3,1813.2,1.9269]
[1746085781997,3.788,1813.3,1813.2,6.9269]
[1746085782297,3.788,1813.3,1813.2,10.1347]
[1746085783200,5.876,1813.5,1813.4,1.10273]
[1746085783392,5.876,1813.5,1813.4,4.62173]
[1746085783700,5.876,1813.5,1813.4,7.82953]
[1746085783903,5.876,1813.5,1813.4,9.51223]
[1746085784197,9.664,1813.5,1813.4,9.51223]
[1746085785296,5.876,1813.5,1813.4,9.51223]
[1746085787097,1.5817,1813.8,1813.7,1.10255]
[1746085787997,1.5817,1813.8,1813.7,2.68545]
[1746085788194,5.3697,1813.8,1813.7,2.68545]
[1746085788400,3.788,1813.8,1813.7,2.68545]
[1746085790303,5.4076,1813.8,1813.7,2.68545]
[1746085790506,5.4076,1813.8,1813.6,42.4541]
[1746085790507,1.10255,1813.7,1813.6,40.8]
[1746085790804,5.6697,1813.7,1813.6,41.90261]
[1746085791295,10.56025,1813.7,1813.6,41.90261]
[1746085791601,10.56025,1813.7,1813.6,1.10261]
[1746085791801,9.4577,1813.7,1813.6,1.10261]
[1746085793103,8.6154,1813.7,1813.6,1.10261]
[1746085793405,8.6154,1813.7,1813.6,4.39441]
[1746085794299,6.9958,1813.7,1813.6,4.39441]
[1746085797305,3.788,1813.7,1813.6,4.39441]
[1746085800300,3.788,1813.7,1813.6,3.53761]
[1746085800505,4.5739,1813.7,1813.6,3.53761]
[1746085800906,9.5152,1813.7,1813.6,1.10261]
[1746085806312,6.3074,1813.7,1813.6,1.10261]
[1746085806916,6.3074,1813.7,1813.6,2.78951]
[1746085809910,5.5215,1813.7,1813.6,2.78951]
[1746085812115,6.3223,1813.7,1813.6,2.78951]
[1746085816015,3.788,1813.7,1813.6,5.99731]
[1746085822623,3.788,1813.7,1813.6,2.78951]
[1746085822922,3.788,1813.7,1813.6,5.99731]
[1746085831228,3.788,1813.7,1813.6,46.79731]
[1746085831520,3.788,1813.7,1813.6,1.10261]
[1746085831923,6.2198,1813.7,1813.6,1.10261]
[1746085835326,6.2198,1813.7,1813.6,2.83211]
[1746085836428,3.788,1813.7,1813.6,2.83211]
[1746085842424,0.69868,1813.7,1813.6,8.03111]
[1746085842628,1e-05,1813.7,1813.6,8.03111]
[1746085842831,1e-05,1813.7,1813.6,48.83111]
[1746085843128,5.59132089,1814.3,1813.6,56.8815]
[1746085843320,8.5716266,1814.6,1814.5,1.10206]
[1746085843525,8.5716266,1814.6,1814.5,8.00586]
[1746085844331,12.3596266,1814.6,1814.5,9.65216]
[1746085844525,11.2537466,1814.6,1814.5,9.65216]
[1746085845131,6.3304666,1814.6,1814.5,9.65216]
[1746085845533,4.9461266,1814.6,1814.5,9.65216]
[1746085845731,3.6645166,1814.6,1814.5,10.08962932]
[1746085845935,10.22797833,1814.7,1814.5,13.98756932]
[1746085846234,2.44,1815.3,1815.0,1.10176]
[1746085846434,30.36196413,1815.1,1815.0,48.80456]
[1746085846931,2.44,1815.3,1815.2,1.10164]
[1746085847127,0.83,1815.5,1815.4,1.10152]
[1746085848229,4.618,1815.5,1815.4,1.10152]
[1746085848822,9.618,1815.5,1815.2,0.199]
[1746085849025,1.10153,1815.4,1815.2,1.30064]
[1746085849429,6.10153,1815.4,1815.2,1.30064]
[1746085849934,3.2078,1815.3,1815.2,1.30064]
[1746085850334,8.2078,1815.3,1815.2,1.30064]
[1746085850823,3.788,1815.4,1815.3,1.10158]
[1746085851027,8.09732,1815.4,1815.3,1.10158]
[1746085851235,9.30932,1815.4,1815.3,1.10158]
[1746085851627,14.0838,1815.4,1815.3,1.10158]
[1746085851828,9.0838,1815.4,1815.3,1.10158]
[1746085852134,12.8718,1815.4,1815.3,1.10158]
[1746085852436,9.664,1815.4,1815.3,1.10158]
[1746085853537,12.8718,1815.4,1815.3,1.10158]
[1746085855838,9.664,1815.4,1815.3,1.10158]
[1746085857539,3.788,1815.4,1815.3,1.30058]
[1746085859236,4.88952,1815.4,1815.3,1.30058]
[1746085859441,3.788,1815.4,1815.3,1.30058]
[1746085860840,4.88952,1815.4,1815.3,1.30058]
[1746085861337,3.788,1815.4,1815.3,1.30058]
[1746085862340,3.788,1815.4,1815.3,2.98898]
[1746085864742,5.4409,1815.4,1815.3,2.98898]
[1746085865344,13.19482,1815.4,1815.0,4.59776]
[1746085865545,4.30947,1815.2,1815.0,4.59776]
[1746085865744,2.5125,1815.1,1815.0,4.59776]
[1746085865940,3.3015,1815.1,1815.0,4.59776]
[1746085866140,7.0895,1815.1,1815.0,4.59776]
[1746085866345,7.0895,1815.1,1815.0,3.496]
[1746085866646,8.1912,1815.1,1815.0,3.496]
[1746085867747,1.10188,1814.8,1814.7,1.10192]
[1746085868150,4.88988,1814.8,1814.7,1.10192]
[1746085868648,1.10194,1814.7,1814.6,4.59597]
[1746085868957,2.79914,1814.7,1814.6,4.59597]
[1746085869158,6.58714,1814.7,1814.6,4.59597]
[1746085869654,6.58714,1814.7,1814.6,4.596]
[1746085869859,1.102,1814.6,1814.5,1.10202]
[1746085870058,1.10206,1814.5,1814.4,4.2834]
[1746085870245,1.97306,1814.5,1814.4,4.59612]
[1746085870450,1.97306,1814.5,1814.4,3.494]
[1746085870856,1.10218,1814.3,1814.2,0.7894]
[1746085871052,1.10218,1814.3,1814.2,1.89164]
[1746085871361,3.788,1814.3,1814.2,3.58554]
[1746085872657,4.89018,1814.3,1814.2,2.4833]
[1746085873159,4.89018,1814.3,1814.2,3.58554]
[1746085875954,3.788,1814.3,1814.2,3.58554]
[1746085876861,3.589,1814.3,1814.2,8.58554]
[1746085877255,9.0838,1814.7,1814.6,1.102]
[1746085877458,3.2078,1814.7,1814.6,41.902]
[1746085877858,3.2078,1814.7,1814.6,44.425]
[1746085878059,6.9958,1814.7,1814.6,44.425]
[1746085880468,3.788,1814.7,1814.6,52.6328]
[1746085881172,10.18552,1815.1,1814.9,1.10176]
[1746085881373,1.5889,1815.0,1814.9,4.66982]
[1746085882173,5.3769,1815.0,1814.9,4.66982]
[1746085882671,3.788,1815.0,1814.9,4.66982]
[1746085882873,3.788,1815.0,1814.9,6.33132]
[1746085887576,5.3751,1815.0,1814.9,6.33132]
[1746085888376,6.47686,1815.0,1814.9,3.568]
[1746085888567,7.28836,1815.0,1814.9,3.568]
[1746085888969,1.10182,1814.9,1814.8,1.10186]
[1746085889170,7.46322,1814.9,1814.8,1.10186]
[1746085889473,6.3614,1814.9,1814.8,1.10186]
[1746085889671,7.46322,1814.9,1814.8,1.10186]
[1746085889978,10.67102,1814.9,1814.8,1.10186]
[1746085890477,9.5692,1814.9,1814.8,1.10186]
[1746085891175,10.67102,1814.9,1814.8,1.10186]
[1746085892076,7.46322,1814.9,1814.8,1.10186]
[1746085892272,6.3614,1814.9,1814.6,3.568]
[1746085892465,1.10194,1814.7,1814.6,4.66994]
[1746085892671,6.02363,1814.8,1814.7,1.10194]
[1746085893171,9.81163,1814.8,1814.7,1.10194]
[1746085894171,1.10194,1814.7,1814.6,4.66995]
[1746085894372,2.70484,1814.7,1814.6,4.66995]
[1746085894778,2.70484,1814.7,1814.6,3.568]
[1746085895173,2.70484,1814.7,1814.5,1.10205]
[1746085895174,1.102,1814.6,1814.5,1.10205]
[1746085895373,6.7668,1814.6,1814.5,1.10205]
[1746085895574,3.559,1814.6,1814.5,1.10205]
[1746085895974,4.3498,1814.6,1814.5,1.10205]
[1746085896183,8.1378,1814.6,1814.5,1.10205]
[1746085897978,8.1378,1814.6,1814.4,1.10208]
[1746085897979,1.10206,1814.5,1814.4,1.10208]
[1746085898180,6.58576,1814.5,1814.4,1.10208]
[1746085901082,5.4837,1814.5,1814.4,1.10208]
[1746085901880,3.788,1814.5,1814.4,3.67888]
[1746085912384,3.788,1814.5,1814.4,1.10208]
[1746085912684,6.47386,1814.5,1814.4,1.10208]
[1746085912883,1.10212,1814.4,1814.3,3.568]
[1746085913083,2.68592,1814.4,1814.3,4.67014]
[1746085914084,6.47392,1814.4,1814.3,4.67014]
[1746085919787,9.68172,1814.4,1814.3,4.67014]
[1746085921389,9.68172,1814.4,1814.2,1.6965]
[1746085921690,3.65398,1814.3,1814.2,2.79874]
[1746085922185,1.1023,1814.1,1814.0,6.04061]
[1746085922488,1.1023,1814.1,1813.8,10.84028836]
[1746085922489,1.10243,1813.9,1813.8,10.84028836]
[1746085922693,4.31023,1813.9,1813.8,11.94277836]
[1746085922891,4.31023,1813.9,1813.8,13.51587836]
[1746085923188,6.60453,1813.9,1813.8,13.51587836]
[1746085925790,6.60453,1813.9,1813.8,6.24059]
[1746085926390,6.60453,1813.9,1813.8,5.1381]
[1746085926790,1.10255,1813.7,1813.6,0.8168]
[1746085926986,1.10255,1813.7,1813.6,1.91941]
[1746085927186,4.89055,1813.7,1813.6,3.65561]
[1746085927485,7.35285,1813.7,1813.6,3.65561]
[1746085928987,3.788,1813.7,1813.6,3.65561]
[1746085930385,4.89055,1813.7,1813.6,3.65561]
[1746085932293,3.788,1813.7,1813.6,3.65561]
[1746085942696,3.788,1813.7,1813.6,44.45561]
[1746085942892,5.71155,1813.7,1813.6,44.45561]
[1746085943088,7.32485,1813.7,1813.6,44.45561]
[1746085943294,6.2223,1813.7,1813.5,4.66861]
[1746085943494,2.71591,1813.6,1813.5,4.66861]
[1746085943694,6.77781,1813.6,1813.5,4.66861]
[1746085944200,7.35801,1813.6,1813.5,1.10261]
[1746085947001,6.2554,1813.6,1813.5,1.10261]
[1746085947708,7.35801,1813.6,1813.5,1.10261]
[1746085947902,6.2554,1813.6,1813.5,1.10261]
[1746085948805,7.35801,1813.6,1813.5,1.10261]
[1746085953608,6.2554,1813.6,1813.5,1.10261]
[1746085954303,3.788,1813.6,1813.5,1.10261]
[1746085954610,3.788,1813.6,1813.5,2.72201]
[1746085954805,5.4666,1813.6,1813.5,2.72201]
[1746085955807,6.56921,1813.6,1813.5,2.72201]
[1746085955997,7.43461,1813.6,1813.5,2.72201]
[1746085957102,3.788,1813.6,1813.5,2.72201]
[1746085957510,3.788,1813.6,1813.5,6.27501]
[1746085959204,3.788,1813.6,1813.5,47.07501]
[1746085962216,6.6722,1813.9,1813.8,1.10249]
[1746085962404,5.876,1813.9,1813.8,1.10249]
[1746085963110,9.664,1813.9,1813.8,1.10249]
[1746085963603,11.3738,1813.9,1813.8,1.10249]
[1746085965907,5.4978,1813.9,1813.8,1.10249]
[1746085967111,3.788,1813.9,1813.8,1.10249]
[1746085968815,3.788,1813.9,1813.8,4.63849]
[1746085971512,3.788,1813.9,1813.8,6.38189]
[1746085974926,3.788,1813.9,1813.8,47.18189]
[1746085980239,3.788,1814.0,1813.9,1.10243]
[1746085980438,3.788,1814.0,1813.9,2.69243]
[1746085980840,3.788,1814.0,1813.9,43.49243]
[1746085982943,4.6136,1814.0,1813.9,43.49243]
[1746085985238,6.3518,1814.0,1813.9,43.49243]
[1746085986639,11.3518,1814.0,1813.9,2.69243]
[1746085986841,1.10255,1813.7,1813.6,7.27528836]
[1746085987242,1.10255,1813.7,1813.6,8.37789836]
[1746085987432,3.52825,1813.7,1813.6,8.37789836]
[1746085988243,7.31625,1813.7,1813.6,8.37789836]
[1746085988543,6.2137,1813.7,1813.6,8.37789836]
[1746085989340,7.31625,1813.7,1813.6,8.37789836]
[1746085989549,7.31625,1813.7,1813.6,7.27528836]
[1746085989944,7.31625,1813.7,1813.6,8.37789836]
[1746085991939,7.31625,1813.7,1813.6,1.10261]
[1746085992132,10.52405,1813.7,1813.6,1.10261]
[1746085992536,1.10262,1813.6,1813.5,1.10264]
[1746085992744,3.54182,1813.6,1813.5,1.10264]
[1746085993145,7.32982,1813.6,1813.5,1.10264]
[1746085993346,7.32982,1813.6,1813.4,45.43768]
[1746085993548,1.10267,1813.5,1813.4,45.43768]
[1746085993845,2.71197,1813.5,1813.4,45.43768]
[1746085994246,6.49997,1813.5,1813.4,45.43768]
[1746085994447,6.49997,1813.5,1813.4,44.335]
[1746085994835,6.49997,1813.5,1813.4,45.43773]
[1746085995348,6.49997,1813.5,1813.4,44.335]
[1746085996149,6.49997,1813.5,1813.4,45.43773]
[1746085996341,6.49997,1813.5,1813.4,44.335]
[1746085996647,6.49997,1813.5,1813.4,3.535]
[1746086001852,1.10291,1813.1,1813.0,10.79828836]
[1746086002449,4.33081,1813.1,1813.0,10.79828836]
[1746086003042,4.33081,1813.1,1813.0,11.90125836]